Cogmind - Beta 11.1 @@@ ROGUE MODE // 2022.04.27 @ 14:13:05 Player: Azken Zutik Result: Destroyed by 8R-AWN with 8R-AWN's Boregun Performance ------------- Evolutions (0) 0 Regions Visited (3) 600 Robots Destroyed (30) 150 Value Destroyed (510) 510 Prototype IDs (2) 40 Alien Tech Used (0) 0 Bonus (-11) -11 TOTAL SCORE: 1289 Bonus ------- Follower Combat Kills 7 Friendly Fire -18 Cogmind --------- Core Integrity 0/250 Matter 179/300 Energy 111/125 System Corruption 4% Temperature Cool (0) Movement Treading (240) Ox1 Location -10/Exiles Parts ------- > --- POWER (1) -------- Light Ion Engine > --- PROPULSION (2) --- Light Treads Light Treads > --- UTILITY (2) ------ High-capacity Storage Unit Core Shielding > --- WEAPON (2) ------- Heavy Hammer Heavy Hammer > --- INVENTORY (20) --- Improved Ion Engine Light Treads Light Treads Light Treads Cooling System Seismic Detector Improved Trap Extractor Assault Rifle Assault Rifle Light Assault Rifle Light Assault Rifle Light Assault Rifle Light Assault Rifle High-powered Shotgun Shock Bomb Launcher Rocket Launcher Mining Laser Peak State ------------ > --- POWER ------------ Light Ion Engine > --- PROPULSION ------- Light Treads Light Treads > --- UTILITY ---------- High-capacity Storage Unit Light Armor Plating > --- WEAPON ----------- Assault Rifle Shock Bomb Launcher > --- INVENTORY -------- Improved Ion Engine Light Treads Light Treads Light Treads Light Treads Light Treads Cooling System Seismic Detector Core Shielding Improved Trap Extractor Assault Rifle Light Assault Rifle Light Assault Rifle Light Assault Rifle Light Assault Rifle High-powered Shotgun Rocket Launcher Mining Laser Heavy Hammer Heavy Hammer [Rating: 12] Favorites ----------- Power Improved Ion Engine Engine Improved Ion Engine Propulsion Light Treads Treads Light Treads Leg Aluminum Leg Utility Light Armor Plating Device Seismic Detector Storage High-capacity Storage Unit Processor Transport Network Coupler Protection Light Armor Plating Weapon Assault Rifle Ballistic Gun Assault Rifle Launcher Shock Bomb Launcher Impact Weapon Heavy Hammer Build | -11 -10 -10 -10 ------- Run | Scr Mat Min Exi Slots Evolved . | . . . . Power . | . . . . Propulsion . | . . . . Utility . | . . . . Weapon . | . . . . Parts Attached 25 | 3 13 1 8 Power 3 | . 2 1 . Engine 3 | . 2 1 . Core . | . . . . Reactor . | . . . . Propulsion 6 | 2 2 . 2 Treads 6 | 2 2 . 2 Leg . | . . . . Wheel . | . . . . Hover . | . . . . Flight . | . . . . Utility 9 | 1 7 . 1 Device 2 | 1 1 . . Storage 3 | . 3 . . Processor 1 | . 1 . . Hackware . | . . . . Protection 3 | . 2 . 1 Artifact . | . . . . Weapon 7 | . 2 . 5 Energy Gun . | . . . . Energy Cannon . | . . . . Ballistic Gun 2 | . 2 . . Ballistic Cannon . | . . . . Launcher 2 | . . . 2 Special Weapon . | . . . . Impact Weapon 3 | . . . 3 Slashing Weapon . | . . . . Piercing Weapon . | . . . . Special Melee Weapon . | . . . . Unidentified Prototypes . | . . . . Parts Lost 5 | . 1 1 3 Power 2 | . 1 1 . Propulsion 2 | . . . 2 Utility 1 | . . . 1 Weapon . | . . . . Highest Loss Streak 3 | . 1 1 3 To Critical Strikes 2 | . . . 2 Average Slot Usage (%) 99 | . 99 99 97 Engine 13 | . 13 13 14 Treads 27 | . 28 28 26 Device 4 | . 9 . . Storage 14 | . 14 14 14 Protection 9 | . 3 14 12 Ballistic Gun 27 | . 27 28 21 Naked Turns . | . . . . Heaviest Build 54 | 15 54 54 54 Greatest Support 40 | 40 40 40 40 Greatest Overweight (x) 1 | . 1 1 1 Average Overweight (x) . | . . 1 1 Largest Inventory Capacity 20 | 8 20 20 20 Average Capacity 17 | 8 15 20 20 Most Carried 20 | 6 16 20 20 Average Carried 15 | 3 10 19 19 Final Capacity 20 | 8 20 20 20 Final Carried 20 | 3 16 20 17 Class Distribution -------------------- 100% | Mutant Dominant Class ---------------- Mutant | -10/Materials Mutant | -10/Mines Mutant | -10/Exiles Resources | -11 -10 -10 -10 ----------- Run | Scr Mat Min Exi Matter Collected 921 | 248 410 263 . Remotely 10 | 10 . . . Salvage Created 894 | 57 566 238 33 Parts 66 | 2 41 23 . Haulers Intercepted 2 | . 2 . . Recyclers Shooed 1 | 1 . . . Parts Field Recycled . | . . . . Retrieved Matter . | . . . . Parts Self-Destructed . | . . . . Prevented . | . . . . Kills | -11 -10 -10 -10 ------- Run | Scr Mat Min Exi Combat Hostiles Destroyed 28 | . 13 9 6 Guns 22 | . 13 9 . AOE 6 | . . . 6 Classes Destroyed 8 | 1 6 . 1 Worker 2 | . 2 . . Builder 2 | . 1 1 . Hauler 2 | . 2 . . Recycler 1 | 1 . . . Watcher 1 | . 1 . . Swarmer 13 | . 6 7 . Grunt 9 | . 7 2 . Assembled 6 | . . . 6 Best Kill Streak 6 | 1 5 3 6 Combat Bots Only 6 | . 3 3 6 Max Kills in Single Turn 4 | 1 2 1 4 Gunslinging 1 | . 1 . . Exploded 4 | . . . 4 Melee . | . . . . Uniques/NPCs Destroyed . | . . . . Combat | -11 -10 -10 -10 -------- Run | Scr Mat Min Exi Damage Taken 1422 | . 581 263 578 Core 253 | . 71 22 160 Absorbed by Shields . | . . . . Redirected to Shielding 3 | . . . 3 Regen/Repaired (Parts) 143 | . 143 . . Core Remaining (%) 100 | 100 . . . Volleys Fired 79 | 3 52 21 3 Largest 2 | 2 2 2 1 Hottest 40 | 40 40 40 36 Shots Fired 160 | 6 105 45 4 Gun 157 | 6 105 45 1 Cannon . | . . . . Launcher 3 | . . . 3 Special . | . . . . Kinetic 157 | 6 105 45 1 Thermal . | . . . . Explosive 2 | . . . 2 Electromagnetic 1 | . . . 1 Robot Hit Streak 19 | 3 16 19 2 Robot Miss Streak 3 | 1 3 3 1 Penetration Max . | . . . . Secondary Targets 1 | . 1 . . Max Gunslinging Chain 1 | . 1 . . Shots Hit Robots 104 | 5 69 25 5 Core Hits 49 | 2 26 13 8 Critical Kills 2 | . 2 . . Critical Parts Destroyed 1 | . 1 . . Critical Strikes 4 | . 3 . 1 Destroy 3 | . 3 . . Smash 1 | . . . 1 Melee Attacks 4 | . . . 4 Impact 4 | . . . 4 Slashing . | . . . . Piercing . | . . . . Sneak Attacks . | . . . . Combat Hostiles . | . . . . Follow-up Attacks . | . . . . Damage Inflicted 1881 | 66 939 335 541 Guns 1346 | 66 935 335 10 Cannons . | . . . . Explosions 382 | . . . 382 Melee 149 | . . . 149 Ramming 4 | . 4 . . Kinetic 1346 | 66 935 335 10 Thermal . | . . . . Explosive 370 | . . . 370 Electromagnetic 12 | . . . 12 Impact 149 | . . . 149 Slashing . | . . . . Piercing . | . . . . Highest Corruption 4 | . 4 4 4 Average Corruption 3 | . 3 4 4 Corruption Purged . | . . . . Corruption Blocked . | . . . . Effects 62 | . 26 33 3 Message Errors 14 | . 4 10 . Matter Fused 16 | . 7 7 2 Heat Flow Errors 7 | . 4 3 . Energy Discharges 8 | . 5 3 . Data Loss (minor) 9 | . 4 5 . Data Loss (major) 2 | . . 2 . Misfires 5 | . 1 3 1 Alerts 1 | . 1 . . Overload Shots . | . . . . Overflow Damage 22 | . . . 22 Projectiles . | . . . . Explosions 22 | . . . 22 Melee . | . . . . Knockbacks 2 | . . . 2 Impact 2 | . . . 2 Kinetic . | . . . . Secondary . | . . . . Self-Inflicted Damage 85 | . . . 85 Shots 2 | . . . 2 Rammed 2 | . 2 . . Targets Rammed 3 | . 3 . . Kicked . | . . . . Crushed 1 | . 1 . . Highest Temperature 225 | . 225 139 26 Average Temperature 53 | . 72 39 12 Received Heat Transfer 344 | . 210 54 80 Siege Activations . | . . . . Robots Corrupted . | . . . . Combat Hostiles . | . . . . Parts Fried . | . . . . Impact Corruptions . | . . . . Robots Melted . | . . . . Combat Hostiles . | . . . . Parts Melted . | . . . . Heat Transferred . | . . . . Parts Sabotaged . | . . . . Parts Stolen . | . . . . Parts Stripped . | . . . . Power Chain Reactions . | . . . . Missiles Intercepted . | . . . . Alert | -11 -10 -10 -10 ------- Run | Scr Mat Min Exi Peak Influence 269 | 5 269 191 . Initial 25 | . 3 25 . Average 79 | 3 111 53 . Maximum Alert Level 1 | . 1 . . Low Security (%) 96 | 100 93 100 . Level 1 3 | . 6 . . Level 2 . | . . . . Level 3 . | . . . . Level 4 . | . . . . Level 5 . | . . . . High Security . | . . . . Max Security . | . . . . Squads Dispatched 2 | . 2 . . Investigation 2 | . 2 . . Extermination . | . . . . Reinforcement . | . . . . Assault . | . . . . Garrison . | . . . . Intercept . | . . . . Searches Triggered . | . . . . Construction Impeded . | . . . . Haulers Reinforced . | . . . . Active Scanning Responses . | . . . . Cargo Convoy Interrupts . | . . . . Stealth | -11 -10 -10 -10 --------- Run | Scr Mat Min Exi Distress Signals 2 | . 2 . . Communications Jammed . | . . . . Distress Signals . | . . . . Times Spotted 44 | . 23 13 8 Peak Tracking Total 9 | . 5 3 9 Tactical Retreats 3 | . 1 2 . Traps | -11 -10 -10 -10 ------- Run | Scr Mat Min Exi Traps Triggered 5 | . 5 . . Indirectly . | . . . . Trap Hack Attempts . | . . . . Triggered . | . . . . Disarmed . | . . . . Reprogrammed . | . . . . Reused . | . . . . Traps Extracted . | . . . . Installed . | . . . . Triggered . | . . . . Machines | -11 -10 -10 -10 ---------- Run | Scr Mat Min Exi Machines Disabled 1 | . 1 . . Max in Single Turn 1 | . 1 . . Machines Sabotaged . | . . . . Garrisons Compromised . | . . . . Overloaded Fab Kills . | . . . . Hacking | -11 -10 -10 -10 --------- Run | Scr Mat Min Exi Machines Accessed 7 | . 6 1 . Terminals 5 | . 5 . . Fabricators . | . . . . Repair Stations 1 | . 1 . . Recycling Units . | . . . . Scanalyzers . | . . . . Garrison Access . | . . . . Total Hacks 30 | . 29 1 . Successful 15 | . 14 1 . Failed 15 | . 15 . . Catastrophic 1 | . 1 . . Database Lockouts . | . . . . Manual 18 | . 18 . . Terminals 23 | . 23 . . Fabricators . | . . . . Repair Stations 6 | . 6 . . Recycling Units . | . . . . Scanalyzers . | . . . . Garrison Access . | . . . . Terminal Hacks 10 | . 9 1 . Record 1 | . 1 . . Robot Analysis 6 | . 6 . . Prototype ID Bank 1 | . 1 . . Open Door 1 | . . 1 . Locate Traps 1 | . 1 . . Fabricator Hacks . | . . . . Repair Station Hacks 4 | . 4 . . Scan Component 2 | . 2 . . Repair 2 | . 2 . . Recycling Unit Hacks . | . . . . Scanalyzer . | . . . . Garrison Access Hacks . | . . . . Unauthorized Hacks 1 | . 1 . . Terminals 1 | . 1 . . Botnet 1 | . 1 . . Fabricators . | . . . . Repair Stations . | . . . . Recycling Units . | . . . . Scanalyzers . | . . . . Garrison Access . | . . . . Data Cores Recovered . | . . . . Used . | . . . . Hacking Detections 4 | . 4 . . Full Trace Events 2 | . 2 . . Feedback Events . | . . . . Feedback Blocked . | . . . . Robot Schematics Acquired . | . . . . Robots Built . | . . . . Authchips . | . . . . Time . | . . . . Total Robot Build Rating . | . . . . Part Schematics Acquired . | . . . . Parts Built . | . . . . Authchips . | . . . . Time . | . . . . Total Part Build Rating . | . . . . Parts Repaired 2 | . 2 . . Time 52 | . 52 . . Parts Recycled . | . . . . Recycled Matter . | . . . . Retrieved Matter . | . . . . Retrieved Components . | . . . . Parts Scanalyzed . | . . . . Part Schematics Acquired . | . . . . Parts Damaged . | . . . . Bothacking | -11 -10 -10 -10 ------------ Run | Scr Mat Min Exi Used RIF Installer . | . . . . Robots Hacked . | . . . . Non-combat . | . . . . Combat . | . . . . Robot Hacks Applied . | . . . . Relay Couplers Released . | . . . . Fabnet Peak Effective % . | . . . . Robots Rewired . | . . . . Allies Hacked . | . . . . Hacks Repelled . | . . . . Allies | -11 -10 -10 -10 -------- Run | Scr Mat Min Exi Total Allies 1 | . . 1 . Largest Group 1 | . . 1 . Highest-Rated Group 31 | . . 31 . Highest-Rated Ally 31 | . . 31 . Total Orders . | . . . . Ally Attacks 3 | . . 3 . Total Damage 22 | . . 22 . Kills 1 | . . 1 . Allies Corrupted . | . . . . Allies Melted . | . . . . Intel | -11 -10 -10 -10 ------- Run | Scr Mat Min Exi Robot Analysis Total 6 | . 6 . . Derelict Logs Recovered 1 | . . 1 . Drone Launches . | . . . . Drone Recoveries . | . . . . Exploration | -11 -10 -10 -10 ------------- Run | Scr Mat Min Exi Turns Passed 3188 | 38 1419 1627 104 Spaces Moved 1276 | 14 599 630 33 Core . | . . . . Treads 1276 | 14 599 630 33 Legs . | . . . . Wheels . | . . . . Hover . | . . . . Flight . | . . . . Fastest Speed 160 | 160 160 240 240 Average Speed 203 | 160 164 240 240 Slowest Speed 240 | 160 240 240 240 Overloaded Moves . | . . . . Propulsion Burnouts . | . . . . Robots Hopped . | . . . . Cave-ins Triggered . | . . . . Exploration Rate (%) 50 | 2 91 98 10 Regions Visited 3 Branch Regions 2 Pre-discovered Areas 1 | . . 1 . Known Exits Taken . | . . . . Unknown Exits Taken 3 | 1 1 1 . Scrap Searched 1 | . . 1 . Spaces Dug . | . . . . Terrain Destroyed 19 | . . . 19 Melee . | . . . . Projectile . | . . . . AOE 19 | . . . 19 Terrain Rammed . | . . . . Walls Destroyed . | . . . . Machines Disabled . | . . . . Actions | -11 -10 -10 -10 --------- Run | Scr Mat Min Exi Total 1712 | 24 933 708 47 Wait 276 | . 235 41 . Move 1273 | 13 598 629 33 Hop . | . . . . Pick Up 28 | 1 17 10 . Fast Attach 9 | 1 7 1 . Attach 4 | . 1 . 3 Detach 2 | . 2 . . Swap 12 | 2 5 . 5 Drop 23 | 4 13 6 . Fire 79 | 3 52 21 3 Melee 3 | . . . 3 Ram . | . . . . Kick . | . . . . Crush 3 | . 3 . . Escape Stasis . | . . . . Rewire . | . . . . Trap . | . . . . Miscellaneous . | . . . . Route ------- -11/Scrapyard -10/Materials (discovered 4 exits: [*Mat x3] / *Min) -10/Mines (discovered 3 exits: [*Mat x2] / [*Exi]) -10/Exiles History --------- Turn | Location | Event 15 | -11/Scrapyard | Discovered new exit (range 3) 39 | -11/Scrapyard | Entered Materials 289 | -10/Materials | Discovered new exit (range 16) 303 | -10/Materials | Build established: Mutant 523 | -10/Materials | Discovered new exit (range 15) 808 | -10/Materials | Discovered new exit (range 15) 1139 | -10/Materials | Repaired Assault Rifle 1166 | -10/Materials | Repaired Assault Rifle 1404 | -10/Materials | Discovered new exit (range 16) 1458 | -10/Materials | Entered Mines 1666 | -10/Mines | Escorted by a lone wolf Derelict 1686 | -10/Mines | Learned location of Storage (-7) 1949 | -10/Mines | Met a Derelict who couldn't figure out how to use a Trap Extractor 2082 | -10/Mines | Deemed a non-threat by the Exiles lab entrance 2082 | -10/Mines | Discovered new exit (range 5) 2168 | -10/Mines | Discovered new exit (range 7) 2223 | -10/Mines | Learned location of 1 exit from Materials 2420 | -10/Mines | Received a Rocket Launcher from a helpful Derelict 2672 | -10/Mines | Discovered new exit (range 8) 3085 | -10/Mines | Entered Exiles 3145 | -10/Exiles | Met 8R-AWN 3155 | -10/Exiles | Attacked by the Exiles 3160 | -10/Exiles | Core integrity fell below 50% 3179 | -10/Exiles | Core integrity fell below 20% 3189 | -10/Exiles | Destroyed by 8R-AWN with 8R-AWN's Boregun Last Messages --------------- 03180_ HV Slug penetrates Earth. 03180_ Penetrated by HV Slug. 03180_ HV Slug penetrates Earth. 03182_ Penetrated by HV Slug. 03182_ HV Slug penetrates Earth. 03182_ Penetrated by HV Slug. 03182_ Critical hit (Destroy). 03182_ Lgt. Treads destroyed. 03182_ HV Slug penetrates Earth. 03185_ Penetrated by HV Slug. 03185_ HV Slug penetrates Earth. 03185_ Penetrated by HV Slug. 03185_ HV Slug penetrates Earth. 03186_ The unstable cave ceiling collapses. 03187_ HV Slug penetrates Wall. 03187_ HV Slug penetrates Earth. 03187_ Penetrated by HV Slug. 03187_ HV Slug penetrates Earth. 03187_ 8R-AWN suffers critical hit (Smash). 03189_ Penetrated by HV Slug. Map ----- +----------------------------------------------------+ | ?????????????????????????????????????????????????? | | ?????????????????????????????????????????????????? | | ?????????????????????????????????????????????????? | | ?????????????????????????????????????????????????? | | ?????????????????????????????????????????????????? | | ?????????????????????????????????????????????????? | | ?????????????????????????????????????????????????? | | ?????????????????????????????????????????????????? | | ?????????????????????????????????????????????????? | | ?????????????????????????????????????????????????? | | ?????????????????????????????????????????????????? | | ?????????????????????????????????????????????????? | | ????????????????????????????????#??????? ????????? | | ??????????????????????????????? #??????? ?????? | | ??????????????????????????????# #??????# #?????? | | ?????????????????????????????? ?????## ##????? | | ?????????????????????????????# #?????# #????? | | ????????????????####????????? ??????# #????? | | ????????????????#;" ????????# #?????## ?????? | | ????????????????#" ????### ?????## #??????? | | ???????????????##" ##### # #?????# #??????? | | ?????????????### #???### #???????? | | ?????????????# # ##### #???????? | | ????????????## "## #????????? | | ????????????# %% * ;"???????? | | ????????? ## % @ * #???????? | | ???????????????????## g ##??????? | | ???????????????????#" ###????? | | ???????????????????#### ####### * ###??? | | ?????????????????????####??????##### ##?? | | ???????????????????????????????????### #?? | | ?????????????????????????????????????### #?? | | ???????????????????????????????????????### #?? | | ????????????????????????????????????????#" ##? | | ????????????????????????????????????????#### ## | | ???????????????????????????????????????????# | | ???????????????????????????????????????????## | | ????????????????????????????????????????????### | | ??????????????????????????????????????????????# | | ??????????????????????????????????????????????## | | ???????????????????????????????????????????????### | | ?????????????????????????????????????????????????? | | ?????????????????????????????????????????????????? | | ?????????????????????????????????????????????????? | | ?????????????????????????????????????????????????? | | ?????????????????????????????????????????????????? | | ?????????????????????????????????????????????????? | | ?????????????????????????????????????????????????? | | ?????????????????????????????????????????????????? | | ?????????????????????????????????????????????????? | +----------------------------------------------------+ Best States ------------- Heat Dissipation 25 Energy Generation 12 Energy Capacity 265 Matter Stores 300 Matter Capacity 300 Sight Range 16 Terrain Scan Density 10 Armor Coverage 150 Evasion (%) 40 Recoil Reduction 2 Item Schematics ----------------- None Robot Schematics ------------------ None Fabricated ------------ Nothing Alien Tech Used ----------------- None Achievements -------------- None Challenges ------------ None Game ------ Seed ChargeMiningAutocannon Manual? 0 Play Time 00:18:26 Cumulative 308.9 hours Start 2022.04.27 @ 13:56:06 End 2022.04.27 @ 14:13:05 Sessions 1 Manual Loads 0 Difficulty Rogue Special Mode None Game No. 101 Rogue 101 Adventurer 0 Explorer 0 Win Type - Total 6 Types 3/1/0/0/2/0/0/0/0 Lore% 60 Gallery% 74 Achievement% 66 Wizard Run 0 Options --------- ASCII 0 Keyboard 0 Movement Mouse Keybinds 0 Fullscreen 0 Font 28/SmallcapsGlow Map View 72x54 Tactical HUD 1 Map Filters NONE Filters NONE Steam 1 RUN: 442bb7ee-feb8-4073-88d0-f0e96cb92051